Cogmind - Beta 15 @@@ ROGUE MODE // 2025.07.26 @ 20:41:08 Player: chebyrekser Result: Destroyed by G-67 Veteran with Plasma Rifle Performance ------------- Evolutions (6) 3000 Regions Visited (12) 2400 Robots Destroyed (164) 820 Value Destroyed (7531) 7531 Prototype IDs (20) 400 Alien Tech Used (2) 400 Bonus (4995) 4995 TOTAL SCORE: 19546 Bonus ------- High Alert Combat Kills 64 Follower Combat Kills 595 Registered with UFD 300 Met Optimus in HQ 500 Met Zhirov 300 MAIN.C Attacked Warlord 500 Warlord Defense Kills 2736 Cogmind --------- Core Integrity 0/1150 Matter 300/300 Energy 41/100 System Corruption 27% Temperature Cool (21) Movement Walking (320) Ox3 Location -4/Warlord Parts ------- > --- POWER (2) -------- (None) > --- PROPULSION (4) --- Biometal Leg > --- UTILITY (10) ----- Huge Storage Unit Improved Signal Interpreter Improved Targeting Computer Improved Targeting Computer Improved Armor Integrity Analyzer Graphene Brace > --- WEAPON (3) ------- Vortex Shotgun Vortex Shotgun Matter Neutralizer (fused) > --- INVENTORY (25) --- Light Antimatter Reactor Light Antimatter Reactor Particle Reactor Improved Treads Spiked Medium Treads Myomer Leg Power Amplifier Advanced Heat Sink Advanced Heat Sink Advanced Signal Interpreter Advanced Force Field Advanced System Shield Drone Bay (2/2) Phase Gun Quantum Rifle Quantum Rifle Long-range Proton Cannon Vortex Lance Peak State ------------ > --- POWER ------------ Antimatter Reactor Light Antimatter Reactor > --- PROPULSION ------- Flexi-carbon Leg Myomer Leg Biometal Leg Biometal Leg > --- UTILITY ---------- Advanced Heat Sink Advanced Heat Sink Huge Storage Unit Advanced Sensor Array Improved Signal Interpreter Improved Targeting Computer Improved Targeting Computer Improved Armor Integrity Analyzer Improved Medium Armor Plating Graphene Brace > --- WEAPON ----------- Matter Neutralizer Vortex Catalyst Activator > --- INVENTORY -------- Light Antimatter Reactor Light Antimatter Reactor Particle Reactor Improved Treads Spiked Medium Treads Myomer Leg Power Amplifier Advanced Heat Sink Advanced Heat Sink Advanced Signal Interpreter Advanced Force Field Advanced System Shield Drone Bay Phase Gun Quantum Rifle Quantum Rifle Vortex Shotgun Vortex Shotgun Long-range Proton Cannon Vortex Lance [Rating: 121] Favorites ----------- Power Light Antimatter Reactor Engine Improved Deuterium Engine Power Core Micro Fission Core Reactor Light Antimatter Reactor Propulsion Medium Treads Treads Medium Treads Leg Flexi-carbon Leg Wheel Overtuned Huge Scrapsphere Hover Unit Antigrav System Utility Improved Signal Interpreter Device Advanced Heat Sink Storage Huge Storage Unit Processor Improved Signal Interpreter Hackware Makeshift Hacking Suite Protection Insulated Plating Weapon Heavy Plasma Cannon Energy Gun Quantum Rifle Energy Cannon Heavy Plasma Cannon Ballistic Gun Assault Rifle Ballistic Cannon Heavy Gauss Cannon Launcher Rocket Launcher Special Weapon Mining Laser Impact Weapon Makeshift Hammer Slashing Weapon Power Sword Piercing Weapon Heavy Pick Build | -11 -10 -10 -7 -5 -5 -5 -5 -4 -4 -4 -4 -4 ------- Run | Yrd Mat Sub Scr Fac Upp Upp Zhi Pro Fac Upp Upp War Slots Evolved 12 | . . . . 10 . . . . 2 . . . Power 1 | . . . . . . . . . 1 . . . Propulsion 2 | . . . . 2 . . . . . . . . Utility 8 | . . . . 7 . . . . 1 . . . Weapon 1 | . . . . 1 . . . . . . . . Parts Attached 159 | 7 10 6 10 15 2 1 1 17 49 16 10 15 Power 20 | 1 2 . 3 . . . . 3 6 2 1 2 Engine 7 | 1 2 . 2 . . . . 2 . . . . Core 3 | . . . 1 . . . . 1 1 . . . Reactor 10 | . . . . . . . . . 5 2 1 2 Propulsion 37 | 2 . 2 2 1 . . . 6 11 4 5 4 Treads 16 | 2 . 2 2 . . . . 2 2 2 4 . Leg 11 | . . . . . . . . 4 2 . 1 4 Wheel 4 | . . . . 1 . . . . 2 1 . . Hover 6 | . . . . . . . . . 5 1 . . Flight . | . . . . . . . . . . . . . Utility 59 | 1 2 4 1 12 1 . 1 5 17 8 2 5 Device 35 | . 1 3 . 5 1 . 1 3 10 6 2 3 Storage 4 | 1 1 . . 1 . . . . 1 . . . Processor 6 | . . . . 1 . . . 1 1 2 . 1 Hackware 1 | . . . . 1 . . . . . . . . Protection 13 | . . 1 1 4 . . . 1 5 . . 1 Artifact . | . . . . . . . . . . . . . Weapon 43 | 3 6 . 4 2 1 1 . 3 15 2 2 4 Energy Gun 15 | 2 1 . . . . . . 1 8 . 1 2 Energy Cannon 11 | . . . 2 . . 1 . 1 3 2 1 1 Ballistic Gun 3 | 1 2 . . . . . . . . . . . Ballistic Cannon 4 | . . . 1 . . . . . 3 . . . Launcher 5 | . 1 . 1 1 1 . . . . . . 1 Special Weapon 1 | . 1 . . . . . . . . . . . Impact Weapon 1 | . . . . 1 . . . . . . . . Slashing Weapon 2 | . 1 . . . . . . . 1 . . . Piercing Weapon 1 | . . . . . . . . 1 . . . . Special Melee Weapon . | . . . . . . . . . . . . . Unidentified Prototypes 5 | . . . . . . . 2 1 . . . 2 Corrupted Parts 3 | . . . . . . . . . . . 1 2 System Corruption 27 | . . . . . . . . . . . 7 20 Parts Lost 100 | . 3 3 . . . . . 23 33 13 7 18 Power 13 | . 1 . . . . . . 3 4 2 1 2 Propulsion 28 | . . 1 . . . . . 5 11 3 3 5 Utility 37 | . . 1 . . . . . 10 11 6 2 7 Weapon 22 | . 2 1 . . . . . 5 7 2 1 4 Highest Loss Streak 13 | . 3 1 . . . . . 7 10 13 6 10 To Critical Strikes 2 | . . . . . . . . 2 . . . . Average Backups 18 | 2 11 14 14 15 18 20 24 16 22 21 21 22 Power 2 | . . 1 1 2 3 4 3 2 2 2 1 2 Propulsion 1 | . 1 . 1 3 3 3 2 . 1 2 1 . Utility 9 | . 4 7 7 7 9 10 12 10 9 9 11 10 Weapon 5 | 1 4 5 3 2 3 3 5 3 8 7 7 9 Tool/Special . | . . . . . . . . . . . . . Unused Backups 49 | . 4 2 11 4 . 1 2 . 7 1 1 16 Power 7 | . . . 3 . . . 1 . . . . 3 Propulsion 4 | . 1 . . 1 . . 1 . . . . 1 Utility 22 | . 2 . 4 2 . . . . 3 1 . 10 Weapon 16 | . 1 2 4 1 . 1 . . 4 . 1 2 Tool/Special . | . . . . . . . . . . . . . Average Slot Usage (%) 85 | . 98 99 92 86 86 87 71 66 77 85 92 92 Engine 5 | . 13 14 11 5 5 5 5 4 . . . 2 Reactor 3 | . . . . . . . . . 6 8 8 6 Treads 13 | . 28 28 28 11 11 11 11 7 1 . 14 17 Leg 1 | . . . . . . . . 3 6 1 . 1 Wheel 2 | . . . . 5 5 5 5 5 3 6 3 . Hover 1 | . . . . . . . . . 5 5 1 . Device 12 | . 12 8 3 17 17 16 17 10 8 17 19 22 Storage 8 | . 14 14 14 5 5 5 5 6 9 5 5 5 Processor 8 | . . . . 4 5 5 5 4 9 17 21 20 Hackware 3 | . . . . 4 5 5 5 5 5 5 5 3 Protection 4 | . . 5 10 10 11 11 10 3 2 4 . . Energy Gun 2 | . 13 13 . . . . . . 5 . . 3 Energy Cannon 6 | . . . 12 12 13 15 . 2 3 4 8 5 Ballistic Gun 1 | . 13 5 . . . . . . . . . . Ballistic Cannon 1 | . . . 2 . . . . . 2 6 2 . Launcher 1 | . . 5 5 . 1 . . 1 . . . . Peak Build Rating 121 | 6 9 10 29 75 75 76 68 76 104 100 101 121 Average Rating 61 | 5 7 8 19 69 71 72 63 57 86 84 91 91 On Entrance 50 | . 6 9 8 29 73 72 62 68 65 94 100 74 Naked Turns . | . . . . . . . . . . . . . Heaviest Build 169 | 14 31 33 55 135 133 135 108 143 169 150 147 149 Greatest Support 102 | 40 40 40 48 20 20 20 20 48 53 26 102 102 Greatest Overweight (x) 36 | 2 . . 1 6 6 6 5 36 16 7 9 1 Average Overweight (x) 3 | . . . . 4 5 5 4 3 6 5 2 . Largest Inventory Capacity 25 | 8 15 15 15 25 25 25 25 25 25 25 25 25 Average Capacity 21 | 7 13 15 15 20 25 25 25 25 25 25 25 25 Most Carried 25 | 5 15 15 15 20 22 25 25 25 25 25 25 25 Average Carried 18 | 3 11 14 14 15 18 20 24 16 22 21 21 23 Final Capacity 25 | 8 15 15 15 25 25 25 25 25 25 25 25 25 Final Carried 25 | 5 15 15 15 19 20 25 25 25 25 22 22 18 Class Distribution -------------------- 30% | Mutant 22% | Derelict-Mutant 9% | Derelict-Gunner 9% | Derelict-Tank 4% | Scavenger-Mutant 4% | Commander-Mutant 3% | Derelict-Skirmisher 3% | Scavenger-Skirmisher 3% | Scavenger-Gunner Dominant Class ---------------- Mutant | -10/Materials Mutant | -10/Subcaves Mutant | -7/Scraptown Derelict-Mutant | -5/Factory Derelict-Tank | -5/Upper Caves Derelict-Tank | -5/Upper Caves Derelict-Mutant | -5/Zhirov Derelict-Mutant | -4/Proximity Caves Scavenger-Skirmisher | -4/Factory Derelict-Gunner | -4/Upper Caves Derelict-Gunner | -4/Upper Caves Derelict-Gunner | -4/Warlord Resources | -11 -10 -10 -7 -5 -5 -5 -5 -4 -4 -4 -4 -4 ----------- Run | Yrd Mat Sub Scr Fac Upp Upp Zhi Pro Fac Upp Upp War Matter Collected 4055 | 293 206 85 250 232 89 142 50 557 727 706 301 417 Remotely . | . . . . . . . . . . . . . Salvage Created 7079 | 153 536 127 . 978 436 119 93 599 2024 602 463 949 Parts 278 | 10 30 9 . 43 14 3 1 25 70 20 16 37 Haulers Intercepted 2 | . 2 . . . . . . . . . . . Recyclers Shooed 11 | . 2 . . 2 . . . . 7 . . . Parts Field Recycled . | . . . . . . . . . . . . . Retrieved Matter . | . . . . . . . . . . . . . Parts Self-Destructed 78 | . . 13 . . 9 1 . 28 . 20 7 . Prevented 19 | . . . . . 3 2 . 5 . . 9 . Kills | -11 -10 -10 -7 -5 -5 -5 -5 -4 -4 -4 -4 -4 ------- Run | Yrd Mat Sub Scr Fac Upp Upp Zhi Pro Fac Upp Upp War Combat Hostiles Destroyed 129 | . 10 7 . 15 10 2 . 16 24 13 10 22 Melee 2 | . . . . . . . . . 2 . . . Guns 18 | . 6 1 . . . . . . 9 . . 2 Cannons 60 | . . . . 7 7 2 . 5 9 12 9 9 AOE 35 | . 4 6 . 4 3 . . 8 2 . 1 7 Classes Destroyed 19 | 2 5 1 . 3 1 1 . . 1 . . 5 Worker 3 | . . . . 1 . . . . 2 . . . Builder 11 | . 2 . . 5 . . . 1 3 . . . Tunneler 6 | 3 . . . 1 . . . . 2 . . . Hauler 2 | . 2 . . . . . . . . . . . Recycler 6 | 1 . . . 1 . . . . 4 . . . Mechanic 1 | . . . . . . . . . . . . 1 Watcher 6 | . 1 . . 2 . . . 2 1 . . . Swarmer 28 | . 3 4 . 4 4 . . 5 1 2 5 . Saboteur 3 | . . . . . . . . . . . . 3 Grunt 47 | . 7 . . 6 4 . . 3 7 8 3 9 Brawler 4 | . . . . . . . . . 1 . 1 2 Duelist 3 | . . . . . 2 . . . . 1 . . Protector 3 | . . . . . . . . . . . . 3 Sentry 9 | . . . . 1 . . . 3 2 2 1 . Specialist 1 | . . . . . . . . . . . . 1 Hunter 8 | . . . . . . 2 . 4 2 . . . Programmer 19 | . . . . 4 . . . 1 11 . . 3 Executioner 1 | . . . . . . . . . . . . 1 Subdweller 3 | . . 3 . . . . . . . . . . Decomposer 1 | . . . . . . . . . . 1 . . Best Kill Streak 8 | 2 4 4 . 5 6 2 . 5 7 8 5 8 Combat Bots Only 8 | . 3 4 . 4 6 2 . 5 4 8 5 8 Max Kills in Single Turn 4 | 1 3 2 . 4 3 1 . 3 3 1 1 3 Gunslinging 1 | . . . . . . . . . 1 . . . Exploded 3 | . 3 2 . 2 3 . . 3 2 . 1 3 Melee 1 | . . . . . . . . . 1 . . . Uniques/NPCs Destroyed . | . . . . . . . . . . . . . Combat | -11 -10 -10 -7 -5 -5 -5 -5 -4 -4 -4 -4 -4 -------- Run | Yrd Mat Sub Scr Fac Upp Upp Zhi Pro Fac Upp Upp War Hostile Shots Fired 1042 | . 57 78 . 51 43 18 . 206 294 105 36 154 Missed 290 | . 12 29 . 16 9 3 . 54 80 30 12 45 Hits 752 | . 45 49 . 35 34 15 . 152 214 75 24 109 Melee 10 | . . . . . 5 . . . 2 . . 3 Projectile 742 | . 45 49 . 35 29 15 . 152 212 75 24 106 Critical Strikes 37 | . 2 . . 2 4 . . 7 11 3 2 6 Actively Blocked 9 | . . . . . . . . . . 1 2 6 Part Disruptions 1 | . . . . . . . . . . . . 1 Damage Taken 14650 | . 590 556 . 615 762 261 . 2888 4324 1466 507 2681 Core 1733 | . 85 110 . 42 82 35 . 214 495 285 13 372 Absorbed by Shields . | . . . . . . . . . . . . . Ignored by Resistances 90 | . . . . 64 . . . . 26 . . . Regen/Repaired (Parts) 717 | . . . 461 21 22 . 5 . 112 . . 96 Core Remaining (%) 60 | 100 . . 22 . . . . 58 . . . . Volleys Fired 399 | 9 43 18 . 46 17 7 . 62 107 25 26 39 Largest 3 | 2 2 2 . 3 3 3 . 2 3 3 3 3 Hottest 315 | 60 100 70 . 244 244 244 . 175 282 261 261 315 Shots Fired 771 | 18 83 28 . 75 34 17 . 74 233 66 41 102 Gun 289 | 18 80 20 . . . . . . 156 . . 15 Cannon 442 | . . . . 73 32 17 . 54 77 66 41 82 Launcher 38 | . 1 8 . 2 2 . . 20 . . . 5 Special 2 | . 2 . . . . . . . . . . . Kinetic 180 | 9 40 10 . . . . . . 52 40 14 15 Thermal 455 | . 22 10 . 61 27 14 . 49 163 26 11 72 Explosive 33 | . 1 8 . 2 2 . . 20 . . . . Electromagnetic 88 | 9 20 . . 12 5 3 . 5 18 . 16 . Entropic 15 | . . . . . . . . . . . . 15 Robot Hit Streak 31 | 3 13 18 . 19 31 6 . 23 12 15 22 18 Robot Miss Streak 4 | 1 2 1 . 3 1 2 . 2 4 2 2 3 Penetration Max 1 | . . . . . . . . . 1 1 1 . Secondary Targets 2 | . . . . . . . . . 2 . . . Max Gunslinging Chain 1 | . . . . . . . . . 1 . . . Shots Hit Robots 532 | 10 58 20 . 46 28 12 3 58 156 44 30 67 Core Hits 265 | 5 24 10 . 23 16 4 1 40 61 23 15 43 Critical Kills 8 | . 1 . . 4 . . . 1 . . . 2 Critical Parts Destroyed 4 | . . . . 1 . . . 3 . . . . Critical Strikes 32 | . 3 1 . 6 1 . . 4 6 3 5 3 Burn 3 | . 2 1 . . . . . . . . . . Meltdown 7 | . . . . 4 . . . 1 . . . 2 Destroy 1 | . 1 . . . . . . . . . . . Blast 14 | . . . . . . . . . 5 3 5 1 Corrupt 2 | . . . . 1 1 . . . . . . . Smash 4 | . . . . 1 . . . 3 . . . . Sever 1 | . . . . . . . . . 1 . . . Melee Attacks 52 | . 2 13 . 6 . . 3 12 16 . . . Impact 21 | . . . . 6 . . 3 12 . . . . Slashing 31 | . 2 13 . . . . . . 16 . . . Piercing . | . . . . . . . . . . . . . Sneak Attacks 7 | . . . . 4 . . . . 3 . . . Combat Hostiles . | . . . . . . . . . . . . . Follow-up Attacks . | . . . . . . . . . . . . . Damage Inflicted 24185 | 130 990 535 . 2612 1150 377 288 3475 6151 1587 1176 5714 Guns 5144 | 125 648 184 . . . . . . 3549 . . 638 Cannons 10416 | . . . . 1422 886 377 . 1429 1563 1587 1038 2114 Explosions 7102 | . 329 351 . 816 264 . . 1714 528 . 138 2962 Melee 1505 | . . . . 374 . . 288 332 511 . . . Ramming 18 | 5 13 . . . . . . . . . . . Kinetic 3522 | 72 261 72 . . . . . . 1279 978 435 425 Thermal 11457 | . 385 112 . 1595 777 346 . 1337 4123 609 351 1822 Explosive 2789 | . 132 351 . 358 234 . . 1714 . . . . Electromagnetic 1427 | 53 199 . . 285 139 31 . 92 238 . 390 . Impact 994 | . . . . 374 . . 288 332 . . . . Slashing 511 | . . . . . . . . . 511 . . . Piercing . | . . . . . . . . . . . . . Entropic 3467 | . . . . . . . . . . . . 3467 Highest Corruption 27 | . . . . 3 3 3 3 3 21 21 24 27 Average Corruption 9 | . . . . 2 3 3 3 3 12 17 18 23 Corruption Purged 4 | . . . . . . . . . . 4 . . Corruption Blocked . | . . . . . . . . . . . . . Effects 312 | . . . . 18 13 12 3 52 73 67 62 12 Message Errors 68 | . . . . 3 4 3 1 12 17 12 15 1 Matter Fused 77 | . . . . 3 1 5 1 12 22 16 14 3 Heat Flow Errors 35 | . . . . 2 2 . . 6 9 8 7 1 Energy Discharges 41 | . . . . 4 2 3 1 7 7 7 10 . Parts Rejected 1 | . . . . . 1 . . . . . . . Parts Fused 4 | . . . . . . . . 2 . 1 . 1 Data Loss (minor) 41 | . . . . 3 1 . . 7 8 13 6 3 Data Loss (major) 21 | . . . . 1 1 1 . 4 5 3 5 1 Misfires 12 | . . . . 1 1 . . . 4 4 2 . Alerts 4 | . . . . . . . . 1 . . 2 1 Misdirections 1 | . . . . . . . . . . 1 . . Weapon Failures 7 | . . . . 1 . . . 1 1 2 1 1 Overload Shots . | . . . . . . . . . . . . . Overflow Damage 1340 | . 26 5 . 428 27 12 2 213 468 32 19 108 Projectiles 338 | . . . . 50 . 12 . 6 164 32 6 68 Explosions 583 | . 26 5 . 251 27 . . 46 175 . 13 40 Melee 419 | . . . . 127 . . 2 161 129 . . . Knockbacks 27 | . . . . 2 . . . . 7 13 4 1 Impact 2 | . . . . 2 . . . . . . . . Kinetic 23 | . . . . . . . . . 7 12 3 1 Secondary 2 | . . . . . . . . . . 1 1 . Self-Inflicted Damage 379 | . 57 66 . . 70 . . 58 75 . 53 . Shots 11 | . 2 3 . . 2 . . 2 1 . 1 . Rammed 4 | 1 2 . . . . . . . 1 . . . Targets Rammed 4 | 1 2 . . . . . . . 1 . . . Kicked . | . . . . . . . . . . . . . Crushed . | . . . . . . . . . . . . . Highest Temperature 380 | . 289 14 . 300 180 344 . 186 380 211 314 251 Average Temperature 88 | . 83 8 . 71 92 209 . 72 100 63 89 80 Received Heat Transfer 2411 | . 315 258 . 99 288 . . 210 502 292 129 318 Effects 8 | . 1 . . . . . . . 7 . . . Shutdowns 2 | . . . . . . . . . 2 . . . Energy Bleed 2 | . 1 . . . . . . . 1 . . . Interference 3 | . . . . . . . . . 3 . . . Matter Decay 1 | . . . . . . . . . 1 . . . Siege Activations . | . . . . . . . . . . . . . Martial Activations . | . . . . . . . . . . . . . Shielding Activations . | . . . . . . . . . . . . . Robots Disrupted . | . . . . . . . . . . . . . Combat Hostiles . | . . . . . . . . . . . . . Robots Corrupted 4 | . . . . 3 . . . 1 . . . . Combat Hostiles 1 | . . . . . . . . 1 . . . . Parts Fried 10 | . . . . 5 2 1 . . . . 1 1 Impact Corruptions 14 | . . . . 6 . . 1 7 . . . . Robots Melted 12 | . . . . 4 . . . 2 2 1 . 3 Combat Hostiles 12 | . . . . 4 . . . 2 2 1 . 3 Parts Melted 35 | . 2 1 . 5 4 2 . 4 13 . . 4 Heat Transferred 14126 | . 903 407 . 1844 1081 485 . 2074 4727 629 272 1704 Parts Sabotaged . | . . . . . . . . . . . . . Parts Stolen . | . . . . . . . . . . . . . Parts Stripped . | . . . . . . . . . . . . . Power Chain Reactions 7 | . 4 . . . 1 . . . . . 2 . Alert | -11 -10 -10 -7 -5 -5 -5 -5 -4 -4 -4 -4 -4 ------- Run | Yrd Mat Sub Scr Fac Upp Upp Zhi Pro Fac Upp Upp War Maximum Alert Level 2 | . . . . 2 . . . . 1 . . . Low Security (%) 77 | 100 100 . . 74 . . . . 68 . . . Level 1 17 | . . . . 3 . . . . 31 . . . Level 2 5 | . . . . 21 . . . . . . . . Level 3 . | . . . . . . . . . . . . . Level 4 . | . . . . . . . . . . . . . Level 5 . | . . . . . . . . . . . . . High Security . | . . . . . . . . . . . . . Max Security . | . . . . . . . . . . . . . Peak Influence 524 | 10 94 . . 524 . . . . 363 . . . Initial 89 | . . . . . . . . . 89 . . . Average 115 | 1 36 . . 144 . . . . 140 . . . Influence Increases 4952 | 20 414 200 . 754 275 50 5 568 1242 390 300 734 Destroy 0b10 Robot/C 2840 | . 200 80 . 300 200 40 . 400 620 260 200 540 Destroy 0b10 Robot/NC 200 | 20 25 . . 50 . . 5 15 60 . 5 20 Destroy Leader 382 | . 56 . . 64 30 10 . 60 132 10 20 . Allied During Kill 189 | . . . . . . . . 63 42 . . 84 Successful Hack 47 | . 27 . . . . . . . 20 . . . Disable Machine 330 | . 30 . . 210 . . . . 90 . . . Destroy Structure 274 | . 16 . . 100 . . . . 158 . . . Partial Spotted 15 | . 15 . . . . . . . . . . . Lose Combat Pursuer 675 | . 45 120 . 30 45 . . 30 120 120 75 90 Influence Decreases 4648 | 20 339 221 54 269 530 280 5 425 1044 731 300 430 Entered New Map 496 | . . 37 54 . 180 44 . . 54 127 . . Time Decay 3123 | 20 309 174 . 269 350 236 5 300 606 474 230 150 Lost Part 841 | . 30 10 . . . . . 117 304 130 70 180 Lost Ally 188 | . . . . . . . . 8 80 . . 100 Squads Dispatched 16 | . 1 . . 7 . . . 2 6 . . . Investigation 3 | . 1 . . 1 . . . 1 . . . . Extermination 7 | . . . . 3 . . . . 4 . . . Reinforcement 5 | . . . . 2 . . . 1 2 . . . Assault 1 | . . . . 1 . . . . . . . . Garrison . | . . . . . . . . . . . . . Intercept . | . . . . . . . . . . . . . Searches Triggered . | . . . . . . . . . . . . . Construction Impeded 3 | . . . . 2 . . . 1 . . . . Haulers Reinforced . | . . . . . . . . . . . . . Active Scanning Responses . | . . . . . . . . . . . . . Cargo Convoy Interrupts . | . . . . . . . . . . . . . Stealth | -11 -10 -10 -7 -5 -5 -5 -5 -4 -4 -4 -4 -4 --------- Run | Yrd Mat Sub Scr Fac Upp Upp Zhi Pro Fac Upp Upp War Distress Signals 9 | . 1 . . 1 . . . 2 2 . . 3 Communications Jammed . | . . . . . . . . . . . . . Distress Signals . | . . . . . . . . . . . . . Times Spotted 214 | . 16 13 . 20 12 2 . 27 46 18 13 47 Peak Tracking Total 16 | . 3 6 . 5 5 2 . 7 6 10 4 16 Tactical Retreats 24 | . 3 3 . 2 2 . . 2 4 3 2 3 Traps | -11 -10 -10 -7 -5 -5 -5 -5 -4 -4 -4 -4 -4 ------- Run | Yrd Mat Sub Scr Fac Upp Upp Zhi Pro Fac Upp Upp War Traps Triggered 3 | . 1 . . . . . . . 1 . . 1 Indirectly . | . . . . . . . . . . . . . Trap Hack Attempts . | . . . . . . . . . . . . . Triggered . | . . . . . . . . . . . . . Disarmed . | . . . . . . . . . . . . . Reprogrammed . | . . . . . . . . . . . . . Reused . | . . . . . . . . . . . . . Traps Extracted . | . . . . . . . . . . . . . Installed . | . . . . . . . . . . . . . Triggered . | . . . . . . . . . . . . . Machines | -11 -10 -10 -7 -5 -5 -5 -5 -4 -4 -4 -4 -4 ---------- Run | Yrd Mat Sub Scr Fac Upp Upp Zhi Pro Fac Upp Upp War Machines Disabled 22 | . 2 . . 14 . . . . 6 . . . Max in Single Turn 11 | . 1 . . 11 . . . . 1 . . . Garrison Access 1 | . . . . . . . . . 1 . . . Machines Repaired . | . . . . . . . . . . . . . Machines Dismantled . | . . . . . . . . . . . . . Machines Sabotaged . | . . . . . . . . . . . . . Overloaded Fab Kills . | . . . . . . . . . . . . . Hacking | -11 -10 -10 -7 -5 -5 -5 -5 -4 -4 -4 -4 -4 --------- Run | Yrd Mat Sub Scr Fac Upp Upp Zhi Pro Fac Upp Upp War Machines Accessed 25 | . 5 . 3 2 1 1 4 2 2 1 1 3 Terminals 7 | . 5 . . 1 . . . 1 . . . . Fabricators . | . . . . . . . . . . . . . Repair Stations 1 | . . . . . . . . . 1 . . . Recycling Units 2 | . . . . 1 . . . 1 . . . . Scanalyzers . | . . . . . . . . . . . . . Garrison Access 1 | . . . . . . . . . 1 . . . Total Hacks 52 | . 19 . 6 3 1 1 10 3 3 1 1 4 Successful 38 | . 9 . 6 1 1 1 10 1 3 1 1 4 Failed 13 | . 9 . . 2 . . . 2 . . . . Catastrophic . | . . . . . . . . . . . . . Database Lockouts 1 | . 1 . . . . . . . . . . . Manual 23 | . 19 . . 3 . . . . . . . 1 Terminals 22 | . 19 . . 2 . . . 1 . . . . Fabricators . | . . . . . . . . . . . . . Repair Stations 2 | . . . . . . . . . 2 . . . Recycling Units 3 | . . . . 1 . . . 2 . . . . Scanalyzers . | . . . . . . . . . . . . . Garrison Access 1 | . . . . . . . . . 1 . . . Terminal Hacks 32 | . 7 . 6 . 1 1 10 1 . 1 1 4 Record 9 | . . . 5 . . . 2 . . . . 2 Part Schematic 5 | . 1 . . . . . 4 . . . . . Robot Analysis 1 | . 1 . . . . . . . . . . . Prototype ID Bank 4 | . . . . . . . 4 . . . . . Open Door 7 | . . . . . 1 1 . 1 . 1 1 2 Terminal Index 1 | . 1 . . . . . . . . . . . Locate Traps 2 | . 2 . . . . . . . . . . . Zone Layout 2 | . 2 . . . . . . . . . . . Proto ID Catalog 1 | . . . 1 . . . . . . . . . Fabricator Hacks . | . . . . . . . . . . . . . Repair Station Hacks 2 | . . . . . . . . . 2 . . . Scan Component 1 | . . . . . . . . . 1 . . . Repair 1 | . . . . . . . . . 1 . . . Recycling Unit Hacks . | . . . . . . . . . . . . . Scanalyzer . | . . . . . . . . . . . . . Garrison Access Hacks 1 | . . . . . . . . . 1 . . . Seal Access 1 | . . . . . . . . . 1 . . . Unauthorized Hacks 3 | . 2 . . 1 . . . . . . . . Terminals 2 | . 2 . . . . . . . . . . . Botnet 2 | . 2 . . . . . . . . . . . Fabricators . | . . . . . . . . . . . . . Repair Stations . | . . . . . . . . . . . . . Recycling Units 1 | . . . . 1 . . . . . . . . Fedlink 1 | . . . . 1 . . . . . . . . Scanalyzers . | . . . . . . . . . . . . . Garrison Access . | . . . . . . . . . . . . . Data Cores Recovered . | . . . . . . . . . . . . . Used . | . . . . . . . . . . . . . Hacking Detections 7 | . 5 . . 1 . . . 1 . . . . Full Trace Events 1 | . . . . . . . . 1 . . . . Feedback Events . | . . . . . . . . . . . . . Feedback Blocked . | . . . . . . . . . . . . . Robot Schematics Acquired . | . . . . . . . . . . . . . Robots Built . | . . . . . . . . . . . . . Authchips . | . . . . . . . . . . . . . Time . | . . . . . . . . . . . . . Total Robot Build Rating . | . . . . . . . . . . . . . Part Schematics Acquired 5 | . 1 . . . . . 4 . . . . . Parts Built . | . . . . . . . . . . . . . Authchips . | . . . . . . . . . . . . . Time . | . . . . . . . . . . . . . Total Part Build Rating . | . . . . . . . . . . . . . Parts Repaired 1 | . . . . . . . . . 1 . . . Time 25 | . . . . . . . . . 25 . . . Parts Recycled . | . . . . . . . . . . . . . Recycled Matter . | . . . . . . . . . . . . . Retrieved Matter . | . . . . . . . . . . . . . Retrieved Components . | . . . . . . . . . . . . . Parts Scanalyzed . | . . . . . . . . . . . . . Part Schematics Acquired . | . . . . . . . . . . . . . Parts Damaged . | . . . . . . . . . . . . . Bothacking | -11 -10 -10 -7 -5 -5 -5 -5 -4 -4 -4 -4 -4 ------------ Run | Yrd Mat Sub Scr Fac Upp Upp Zhi Pro Fac Upp Upp War Used RIF Installer . | . . . . . . . . . . . . . Robots Hacked . | . . . . . . . . . . . . . Non-combat . | . . . . . . . . . . . . . Combat . | . . . . . . . . . . . . . Robot Hacks Applied . | . . . . . . . . . . . . . Relay Couplers Released . | . . . . . . . . . . . . . Fabnet Peak Effective % . | . . . . . . . . . . . . . Robots Rewired 16 | . . . . . . . . 11 . . . 5 Allies Hacked . | . . . . . . . . . . . . . Hacks Repelled . | . . . . . . . . . . . . . Allies | -11 -10 -10 -7 -5 -5 -5 -5 -4 -4 -4 -4 -4 -------- Run | Yrd Mat Sub Scr Fac Upp Upp Zhi Pro Fac Upp Upp War Total Allies 16 | . . . . . . . . 11 . . . 5 Largest Group 11 | . . . . . . . . 11 6 . . 5 Highest-Rated Group 398 | . . . . . . . . 398 328 . . 268 Highest-Rated Ally 68 | . . . . . . . . 68 68 . . 56 Total Orders 4 | . . . . 4 . . . . . . . . EXPLORE 2 | . . . . 2 . . . . . . . . RETURN 2 | . . . . 2 . . . . . . . . Ally Attacks 60 | . . . . . . . . 11 21 . . 28 Total Damage 2435 | . . . . . . . . 363 854 . . 1218 Kills 19 | . . . . . . . . 4 7 . . 8 Allies Corrupted 1 | . . . . . . . . . 1 . . . Allies Melted 1 | . . . . . . . . 1 . . . . Intel | -11 -10 -10 -7 -5 -5 -5 -5 -4 -4 -4 -4 -4 ------- Run | Yrd Mat Sub Scr Fac Upp Upp Zhi Pro Fac Upp Upp War Active Infowar (turns) 14324 | . 995 478 568 1086 723 578 214 2527 1968 1563 1377 2247 Optics 587 | . . 19 568 . . . . . . . . . Sensors 12145 | . . 1 . 1086 723 578 214 2527 1829 1563 1377 2247 IFF 53 | . . . . . . . . . . 53 . . Terrain 2840 | . . . . . . . . . 160 . 559 2121 Structural 146 | . . 146 . . . . . . . . . . Seismic 1446 | . 995 312 . . . . . . 139 . . . Robot Analysis Total 1 | . 1 . . . . . . . . . . . Derelict Logs Recovered 11 | . . . 3 . 1 2 . 2 . 1 2 . Drone Launches 2 | . . . . 2 . . . . . . . . Drone Recoveries 2 | . . . . 2 . . . . . . . . Exploration | -11 -10 -10 -7 -5 -5 -5 -5 -4 -4 -4 -4 -4 ------------- Run | Yrd Mat Sub Scr Fac Upp Upp Zhi Pro Fac Upp Upp War Turns Passed 18411 | 144 1106 769 2904 1279 783 629 214 2653 2688 1606 1377 2259 Spaces Moved 8090 | 68 473 343 1342 817 555 427 165 824 853 832 641 750 Core 17 | 9 . . . . . . . 8 . . . . Treads 3723 | 59 473 343 1342 . . . . 370 37 . 406 693 Legs 286 | . . . . . . . . 193 36 . . 57 Wheels 3841 | . . . . 817 555 427 165 253 557 832 235 . Hover 223 | . . . . . . . . . 223 . . . Flight . | . . . . . . . . . . . . . Fastest Speed 50 | 50 160 160 160 100 120 120 110 110 130 150 160 115 Average Speed 184 | 146 160 160 213 113 128 129 119 274 224 171 196 185 Slowest Speed 1850 | 160 160 160 245 130 130 130 120 1850 540 205 246 250 Overloaded Moves . | . . . . . . . . . . . . . Propulsion Burnouts . | . . . . . . . . . . . . . Robots Hopped . | . . . . . . . . . . . . . Potential Cave-ins 7 | . . . . . . . . . . . . 7 Cave-ins Triggered . | . . . . . . . . . . . . . Teleports 1 | . . . . . . . . 1 . . . . Exploration Rate (%) 56 | 5 81 26 86 20 70 62 62 66 19 80 70 87 Regions Visited 12 Branch Regions 9 Pre-discovered Areas 4 | . . . . . 1 . . 2 . . 1 . Known Exits Taken 8 | . . . . 1 1 1 1 1 1 1 1 . Unknown Exits Taken 4 | 1 1 1 1 . . . . . . . . . Scrap Searched 16 | . . . 5 . 2 2 . 2 . 4 1 . Spaces Dug 92 | . 2 6 . 3 . . . 19 10 1 . 51 Terrain Destroyed 554 | . 15 49 . 53 28 3 . 113 83 32 14 164 Melee 6 | . 1 . . . . . . . 5 . . . Projectile 150 | . 1 . . 23 2 3 . 7 48 32 8 26 AOE 398 | . 13 49 . 30 26 . . 106 30 . 6 138 Terrain Rammed . | . . . . . . . . . . . . . Walls Destroyed . | . . . . . . . . . . . . . Machines Disabled . | . . . . . . . . . . . . . Actions | -11 -10 -10 -7 -5 -5 -5 -5 -4 -4 -4 -4 -4 --------- Run | Yrd Mat Sub Scr Fac Upp Upp Zhi Pro Fac Upp Upp War Total 10838 | 91 735 507 1403 1090 596 489 180 1131 1392 959 722 1543 Wait 1671 | . 172 111 . 175 10 42 . 121 296 55 25 664 Move 8078 | 67 472 342 1341 816 554 426 164 823 852 831 640 750 Hop . | . . . . . . . . . . . . . Pick Up 203 | 7 21 4 24 20 2 3 3 27 51 18 7 16 Fast Attach 20 | 4 . . 2 . . . 3 1 3 2 . 5 Attach 140 | 2 4 2 4 8 5 2 2 26 41 19 9 16 Detach 29 | . . 1 . 1 4 5 . 2 . 2 6 8 Swap 73 | 1 10 13 5 10 4 3 . 3 11 . 6 7 Drop 102 | . 9 3 27 8 . 1 5 6 14 7 3 19 Fire 399 | 9 43 18 . 46 17 7 . 62 107 25 26 39 Melee 52 | . 2 13 . 6 . . 3 12 16 . . . Ram 1 | . . . . . . . . . 1 . . . Kick . | . . . . . . . . . . . . . Crush 3 | 1 2 . . . . . . . . . . . Escape Stasis . | . . . . . . . . . . . . . Rewire 67 | . . . . . . . . 48 . . . 19 Trap . | . . . . . . . . . . . . . Miscellaneous . | . . . . . . . . . . . . . Route ------- -11/Scrapyard -10/Materials (discovered 4 exits: [*Mat x2] / [*Min] / [*Sub]) -10/Subcaves (discovered 3 exits: [*Mat] / [*Rec] / *Scr) -7/Scraptown (discovered 2 exits: *Fac x2) -5/Factory -5/Upper Caves -5/Upper Caves (discovered 2 exits: *Fac / *Zhi) -5/Zhirov -4/Proximity Caves -4/Factory -4/Upper Caves -4/Upper Caves -4/Warlord History --------- Turn | Location | Event 10 | -11/Scrapyard | Discovered new exit (range 16) 145 | -11/Scrapyard | Entered Materials 237 | -10/Materials | Central database locked down 251 | -10/Materials | Discovered new exit (range 10) 315 | -10/Materials | Build established: Mutant 343 | -10/Materials | Discovered new exit (range 13) 849 | -10/Materials | Lost 3 parts (1p2w) 887 | -10/Materials | Discovered new exit (range 10) 1238 | -10/Materials | Discovered new exit (range 9) 1251 | -10/Materials | Entered Subcaves 1252 | -10/Subcaves | Approached by a straggling Scientist 1284 | -10/Subcaves | Shifting Twisted Machinery released Sub. Machine Gun 1288 | -10/Subcaves | Shifting Twisted Machinery released Battle Cannon 1352 | -10/Subcaves | Core integrity fell below 50% 1417 | -10/Subcaves | Discovered new exit (range 12) 1710 | -10/Subcaves | Scientist uncovered a shortcut to Scraptown 2012 | -10/Subcaves | Discovered new exit (range 16) 2020 | -10/Subcaves | Entered Scraptown 2174 | -7/Scraptown | Scanned Subdweller tech in exchange for log data 2179 | -7/Scraptown | Learned Research stockpile data 2180 | -7/Scraptown | Learned location of 2 exits from Upper Caves 2182 | -7/Scraptown | Learned Research terminal intel 2214 | -7/Scraptown | Visited CPS Storage 2230 | -7/Scraptown | Visited Comm Corps 2296 | -7/Scraptown | Visited Spacefarers 2398 | -7/Scraptown | Visited CR-KLE's Repair Center 2444 | -7/Scraptown | Visited The Evicted 2462 | -7/Scraptown | Visited Assassins FH 2496 | -7/Scraptown | Visited Red Mages 3118 | -7/Scraptown | Discovered new exit (range 11) 3286 | -7/Scraptown | CR-KLE repaired 7 parts 3345 | -7/Scraptown | Visited UFD Registry 3364 | -7/Scraptown | Registered with UFD as "Electrorigger" 3455 | -7/Scraptown | Visited Curators Association 3497 | -7/Scraptown | Visited Chapter 10 3555 | -7/Scraptown | Visited Derelict Rescue Squad 3617 | -7/Scraptown | Received an X-ray algorithm 3651 | -7/Scraptown | Visited DA-N13 Charitable Foundation 3663 | -7/Scraptown | Found DCF Scrap (29 items) 3819 | -7/Scraptown | Visited Research Penetration Think Tank 3870 | -7/Scraptown | Visited Science Guys 4250 | -7/Scraptown | Visited Modified Component R&D 4453 | -7/Scraptown | Found Scrap Suit 4782 | -7/Scraptown | Met Optimus 4782 | -7/Scraptown | Accepted into 0bPrime 4914 | -7/Scraptown | Discovered new exit (range 3) 4924 | -7/Scraptown | Entered Factory 4924 | -5/Factory | Evolved 10 slots: Propulsion x2, Utility x7, Weapon x1 5220 | -5/Factory | Discovered new exit (range 28) 5223 | -5/Factory | Build established: Derelict-Mutant 6032 | -5/Factory | Loaded intel: 8 recycling unit locations 6078 | -5/Factory | Build established: Derelict-Tank 6124 | -5/Factory | First assault squad dispatched 6198 | -5/Factory | Identified exit to Upper Caves 6203 | -5/Factory | Entered Upper Caves 6204 | -5/Upper Caves | Identified exit to Upper Caves 6777 | -5/Upper Caves | Encountered a Warlord checkpoint 6887 | -5/Upper Caves | Found DCF Scrap (13 items) 6986 | -5/Upper Caves | Entered another Upper Caves area 6987 | -5/Upper Caves | Identified exit to Factory 7560 | -5/Upper Caves | Discovered new exit (range 5) 7566 | -5/Upper Caves | Identified exit to Zhirov 7615 | -5/Upper Caves | Entered Zhirov 7615 | -5/Zhirov | Discovered new exit (range 3) 7637 | -5/Zhirov | Met Zhirov 7680 | -5/Zhirov | Zhirov requested help retrieving the SGEMP Prototype 7701 | -5/Zhirov | Found Alien Artifact 7701 | -5/Zhirov | Identified Integrated Dissipator 7701 | -5/Zhirov | Installed Integrated Dissipator, increased core heat dissipation (+20) 7719 | -5/Zhirov | Found Alien Artifact 7828 | -5/Zhirov | Identified exit to Proximity Caves 7829 | -5/Zhirov | Entered Proximity Caves 7893 | -4/Proximity Caves | Lost 7 parts (1n4u2w) 7919 | -4/Proximity Caves | Build established: Derelict-Mutant 8260 | -4/Proximity Caves | Learned location of Testing (-3) 8290 | -4/Proximity Caves | Identified Transdimensional Reconstructor 8290 | -4/Proximity Caves | Warped through subspace 8309 | -4/Proximity Caves | Lost 4 parts (1n3u) 9459 | -4/Proximity Caves | Snuck into a huge 0b10 base via the rear entrance 9567 | -4/Proximity Caves | Lost 3 parts (1n2w) 9793 | -4/Proximity Caves | Derelicts attacked a huge 0b10 base 9991 | -4/Proximity Caves | Discovered exit to Factory (range 5) 10184 | -4/Proximity Caves | Build established: Commander-Mutant 10417 | -4/Proximity Caves | Lost 5 allies 10482 | -4/Proximity Caves | Entered Factory 10482 | -4/Factory | Accompanied by 6 allies 10482 | -4/Factory | Evolved 2 slots: Power x1, Utility x1 10584 | -4/Factory | Repaired Hvy. Plasma Cannon 10900 | -4/Factory | Lost 3 allies 11138 | -4/Factory | Build established: Skirmisher 11231 | -4/Factory | Lost 10 parts (2p2n4u2w) 11726 | -4/Factory | Build established: Scavenger-Mutant 11870 | -4/Factory | System corruption reached 10% 11894 | -4/Factory | Lost 8 parts (2p1n4u1w) 12258 | -4/Factory | Lost 7 parts (4n1u2w) 12502 | -4/Factory | Build established: Scavenger-Skirmisher 12626 | -4/Factory | Discovered new exit (range 16) 13102 | -4/Factory | Spotted B-86 Titan 13167 | -4/Factory | Identified exit to Upper Caves 13170 | -4/Factory | Entered Upper Caves 13344 | -4/Upper Caves | Encountered a Warlord checkpoint 13555 | -4/Upper Caves | Learned Research stockpile data 13631 | -4/Upper Caves | Attracted the attention of an 0b10 outpost 13664 | -4/Upper Caves | Core integrity fell below 50% 13736 | -4/Upper Caves | Destroyed 8 combat bots 13739 | -4/Upper Caves | Lost 13 parts (2p3n6u2w) 14133 | -4/Upper Caves | Attracted the attention of an 0b10 checkpoint 14392 | -4/Upper Caves | Build established: Derelict-Gunner 14409 | -4/Upper Caves | Discovered new exit (range 10) 14431 | -4/Upper Caves | Identified exit to Upper Caves 14776 | -4/Upper Caves | Entered another Upper Caves area 14777 | -4/Upper Caves | Identified exit to Warlord 15045 | -4/Upper Caves | Learned Research terminal intel 15083 | -4/Upper Caves | Build established: Scavenger-Gunner 15234 | -4/Upper Caves | Lost 6 parts (1p3n1u1w) 15437 | -4/Upper Caves | Attracted the attention of an 0b10 checkpoint 15635 | -4/Upper Caves | Build established: Derelict-Gunner 16126 | -4/Upper Caves | Build established: Derelict-Mutant 16153 | -4/Upper Caves | Entered Warlord 16209 | -4/Warlord | System corruption cleaned by Quarantine Array 16666 | -4/Warlord | Received a Watcher feed algorithm from an ecstatic Tinkerer 16666 | -4/Warlord | Ran a Watcher feed algorithm 16755 | -4/Warlord | Build established: Derelict-Skirmisher 16810 | -4/Warlord | Visited the Vortex Lab 16823 | -4/Warlord | Warlord's base attacked by MAIN.C 16827 | -4/Warlord | Found Prototype Launcher 16830 | -4/Warlord | Found Prototype Piercing Weapon 16837 | -4/Warlord | Found Prototype Energy Gun 16843 | -4/Warlord | Found Prototype Energy Gun 17131 | -4/Warlord | Opened side exit 17173 | -4/Warlord | Warlord forces counterattacked 17460 | -4/Warlord | Spotted Striker 17485 | -4/Warlord | Lost 5 allies 17485 | -4/Warlord | Spotted Executioner 17497 | -4/Warlord | Destroyed Executioner 17498 | -4/Warlord | Warlord base infiltrated, sounded retreat 17713 | -4/Warlord | Spotted Executioner 17920 | -4/Warlord | Build established: Derelict-Gunner 18189 | -4/Warlord | Core integrity fell below 20% 18213 | -4/Warlord | Lost 3 parts (1n1u1w) 18362 | -4/Warlord | Lost 4 parts (2u2w) 18381 | -4/Warlord | Identified Vortex Catalyst Activator 18385 | -4/Warlord | Spotted Executioner 18396 | -4/Warlord | Identified Vortex Shotgun (x2) 18397 | -4/Warlord | Spotted Striker 18412 | -4/Warlord | Destroyed by G-67 Veteran with Plasma Rifle Last Messages --------------- Antimatter Reactor destroyed. Slug penetrates Wall. Destroyed Adv. Heat Sink. Vortex Catalyst Activator destroyed. Identified Vortex Shotgun. Acquired 10 matter. Myomer Leg destroyed. Penetrated by Slug. Acquired 10 matter. Penetrated by Slug. Slug penetrates Earth. Penetrated by Slug. System corrupted: IFF burst signal emitted. Imp. Medium Armor Plating destroyed. Flexi-carbon Leg destroyed. Lgt. Antimatter Reactor destroyed. B-74 Champion destroyed. Biometal Leg destroyed. Adv. Heat Sink destroyed. Adv. Sensor Array destroyed. Map ----- +----------------------------------------------------+ | ???????????#??# #????? ?? | | ????????#?????# ????? #?? | | ???#???????????# ##??? #?? | | ????????????????# #??? ##? | | #????????????????# ##?? #? | | ############??????# ### #?? | | """""""""""#???????# # #??? | | """"""" """#?####?## "???? | | ### ### ##??? | | + ## ##?? | | + ### ; ?? | | #### "# ; | | """""""""""#??## ;; | | """"" """""###?# % ; | | ######## ##### ; ; | | #??#? ??## ??##;%gm ; | | ?#????????#####* = g; | | ????###?##?#?#%*%; ; ? | | #?#?#??#????##[%; g g ? | | ?##?###????##%% # #? | | ??##?#?##???#=! # ;;bgE; ## | | ?##????????##[ ## ; K*; # | | ######?#####" ## ; ; # | | ##?#??##?#?#" ### bl % # | | ?######?#### ## ; =l==## | | ##???##?### #?#; *@ ==% | | ##??#?##### ## ### [% %* | | #?##### # "### ## !; # | | #?#??# ##?# #; ; # | | ??#?## #### ;[% ;;# # | | ?##?## ## ![#### % ; ### | | ?########## *[#?###;%% #; #?? | | #?###?#?## ##?## ;##;### ##? | | ?##?###?## ##?### ####### ### | | ?##?#?####% "#### ##?##?####?# | | #####???#" "### ###?#?####?#? | | ?##??#?##" "# #####?#?###?? | | #????### #%=! ###?####??##?#? | | ??###### ![%% #####?#?#?##??? | | ### ##! !!%=%!##?######?####?# | | ""#"""![*%=%[!###??##?###??##? | | %!%*!* ####?#??##?#?? | | [[[ !! #####?####?????? | | ###" "!% [ #?####?##?##???? | | ### = ###????###?###?? | | ###### #####?#??##??#?#?# | | ?#############?###??######???? | | ?##??####?###??######?#?#????? | | ###???####?###?#???#?#?#?????? | | | +----------------------------------------------------+ Best States ------------- Heat Dissipation 101 Energy Generation 39 Energy Capacity 410 Matter Stores 300 Matter Capacity 300 Sight Range 21 Robot Scan Range 16 Terrain Scan Range 20 Terrain Scan Density 10 Additional Mass Support 9 Armor Coverage 1000 Resistance: EX 50 Resistance: EM 15 Phase Shifting 10 Evasion (%) 55 Targeting Accuracy 12 Armor Integrity Analysis 40 Recoil Reduction 4 Matter Filtering 50 Energy Filtering 30 Offensive Hacking 11 Item Schematics ----------------- Huge Storage Unit | -10/Materials | Hacked Assault Drone Bay | -5/Zhirov | Free Exp. Heat Sink | -5/Zhirov | Free Exp. Optical Array | -5/Zhirov | Free Imp. Arc Thrower | -5/Zhirov | Free Robot Schematics ------------------ None Fabricated ------------ Nothing Repaired ---------- Hvy. Plasma Cannon | 30% | -4/Factory Alien Tech Used ----------------- Integrated Dissipator Transdimensional Reconstructor Achievements -------------- None Challenges ------------ None Game ------ Seed AlertPlasmaSheargun Manual? 0 Play Time 02:24:35 Cumulative 30.7 hours Start 2025.07.26 @ 17:27:16 End 2025.07.26 @ 20:41:08 Sessions 1 Manual Loads 0 Difficulty Rogue Special Mode None Game No. 21 Rogue 21 Adventurer 0 Explorer 0 Win Type - Total 1 Types 1/0/0/0/0/0/0/0/0/0 Lore% 47 Gallery% 29 Achievement% 31 Wizard Run 0 Options --------- Layout 1 ASCII 0 Keyboard 0 Movement Mouse Keybinds 0 Fullscreen 1 Font 24/Smallcaps Map View 50x35 Zoom Use 0% Tactical HUD 0 Map Filters NONE Filters NONE Steam 1 RUN: aaea3db9-f3e3-4e8f-8c0a-9946f55f1e16